[Event "17th Delhi GM Open 2019-B"]
[Site "Delhi"]
[Date "2019.01.11"]
[Round "7"]
[White "Sai Kiran Y"]
[Black "Koustav Chakraborty"]
[Result "1/2-1/2"]
[ECO "B76"]
[WhiteElo "1732"]
[BlackElo "1898"]
[Annotator "NA RC"]
[PlyCount "107"]
[EventDate "2019.01.09"]
[EventType "swiss"]
[EventCountry "IND"]
[SourceTitle "playchess.com"]
[Source "ChessBase"]
[SourceQuality "1"]
[TimeControl "3600+30"]

{[%evp 10,97,46,48,65,68,62,59,56,25,19,16,6,17,23,36,37,27,27,25,37,27,37,26,62,62,119,15,29,30,31,-60,-38,-41,23,16,13,9,87,57,73,35,45,-27,-28,-29,-32,-39,0,0,0,0,0,-33,0,0,44,0,0,0,70,0,0,-39,-22,-76,19,0,0,12,62,57,126,7,103,32767,32767,32767,32767,0,0,-83,-85,-97,-20,-33,0,0,0,0]} 1. e4 {[%emt 0:00:00]} c5 {[%emt 0:00:00]} 2. Nf3 {[%emt 0:00:00]} d6 {[%emt 0:00:00]} 3. d4 {[%emt 0:00:00]} cxd4 {[%emt 0:00:00]} 4. Nxd4 {[%emt 0:00:00]} Nf6 {[%emt 0:00:00]} 5. Nc3 {[%emt 0:00:00]} g6 {[%emt 0:00:00]} 6. Be3 {[%emt 0:00:00]} Bg7 {[%emt 0:00:00]} 7. f3 {[%emt 0:00:00]} O-O {[%emt 0:00:00]} 8. Qd2 {[%emt 0:00:00]} Nc6 {[%emt 0:00:00]} 9. O-O-O {[%emt 0:00:00]} d5 {[%emt 0:00:00]} 10. Qe1 {[%emt 0:00:00]} e5 {[%emt 0:00:00]} 11. Nxc6 {[%emt 0:00:00]} bxc6 {[%emt 0:00:00]} 12. exd5 {[%emt 0:00:00]} Nxd5 {[%emt 0:00:00]} 13. Bc4 {[%emt 0:00:00]} Be6 {[%emt 0:00:00]} 14. Ne4 {[%emt 0:00:00] LiveBook: 164 Games} Qc8 {[%emt 0:00:00] B76: Sicilian Dragon: Yugoslav Attack, 9 g4 and 9 0-0-0} 15. Bc5 {[%emt 0:00:00]} Rd8 {[%emt 0:00:00]} 16. Qh4 {[%emt 0:00:00]} a5 $146 {[%emt 0:07:39]} ({Predecessor:} 16... h6 17. g4 Qc7 18. g5 h5 19. Qf2 Qa5 20. Qe1 Qc7 21. Qf2 Qa5 22. Bd6 Rxd6 23. Nxd6 {0-1 (29) Sax,G (2609)-Mohr,G (2488) Maribor 2000}) 17. g4 {[%emt 0:00:00]} Rd7 {[%emt 0:28:46]} (17... a4 $14) 18. g5 {[%emt 0:00:00]} ({White should try} 18. Ng5 $16 {[%csl Gg5][%cal Rh4h7]} h6 19. Nxe6 fxe6 20. g5) 18... Nf4 {[%emt 0:00:45]} 19. Rxd7 {[%emt 0:01:36]} Qxd7 {[%emt 0:00:35]} 20. Rd1 {[%emt 0:02:25]} (20. Bxe6 $1 $14 Qxe6 21. Kb1) 20... Bd5 {[%emt 0:06:55]} 21. Be3 {[%emt 0:23:21]} Ng2 {[%emt 0:01:05]} 22. Qf2 {[%emt 0:00:00]} Nxe3 {[%emt 0:00:04]} 23. Qxe3 {[%emt 0:00:05]} Rd8 {[%emt 0:01:32]} (23... Qe6 $11 24. Nc5 Qh3 25. Bxd5 cxd5) 24. Qc5 {[%emt 0:03:03]} a4 {[%emt 0:01:15]} 25. Nc3 {[%emt 0:01:28]} Qf5 {[%emt 0:00:14]} 26. Bxd5 {[%emt 0:02:17]} Qxg5+ {[%emt 0:00:04]} 27. Kb1 {[%emt 0:01:04]} cxd5 {[%emt 0:00:03]} 28. Nxd5 {[%emt 0:01:08]} Bf8 {[%emt 0:00:35]} 29. Qa5 {[%emt 0:01:19]} Rd6 {[%emt 0:01:08]} 30. a3 {[%emt 0:01:51]} Qf5 {[%emt 0:01:12]} 31. Qxa4 {[%emt 0:00:55]} Qxf3 {[%emt 0:00:35]} 32. c4 {[%emt 0:00:09]} Kg7 {[%emt 0:00:51]} (32... Re6 $1 $15) 33. Qc2 {[%emt 0:00:43]} Rc6 $1 {[%emt 0:00:37]} 34. Re1 {[%emt 0:00:51]} Re6 {[%emt 0:01:07]} ({Black should try} 34... Rc8 $11) 35. Rg1 {[%emt 0:01:35]} Bc5 {[%emt 0:00:19]} 36. Rg3 {[%emt 0:00:39]} Qf1+ {[%emt 0:00:10]} 37. Ka2 {[%emt 0:00:00] [#]} Bd4 {[%emt 0:00:11]} (37... e4 $1 $17) 38. Ne3 {[%emt 0:00:46]} Bxe3 {[%emt 0:01:07]} 39. Rxe3 {[%emt 0:00:00]} Qh1 {[%emt 0:01:56]} 40. Qe2 {[%emt 0:00:44]} e4 {[%emt 0:00:30]} 41. c5 {[%emt 0:00:37]} ({White should try} 41. Qd2 $16) 41... Qg1 {[%emt 0:01:31]} 42. Rxe4 {[%emt 0:01:20]} Rxe4 {[%emt 0:00:03]} 43. Qxe4 {[%emt 0:00:03]} Qxc5 {[%emt 0:00:05]} 44. h4 {[%emt 0:01:28]} f5 {[%emt 0:00:18]} 45. Qb7+ {[%emt 0:00:09] [#]} (45. Qf4 $11) 45... Kh6 $1 {[%emt 0:00:04]} 46. Qf7 {[%emt 0:01:26]} Qe3 {[%emt 0:01:01]} ({Black should try} 46... Qe5 $17 47. a4 f4) 47. a4 $1 {[%emt 0:00:55]} f4 {[%emt 0:01:41]} 48. a5 {[%emt 0:00:24]} f3 {[%emt 0:00:13]} 49. a6 $11 {[%emt 0:00:35]} f2 {[%emt 0:00:46]} 50. a7 {[%emt 0:00:25]} f1=Q {[%emt 0:00:05]} 51. Qxf1 {[%emt 0:00:09]} Qxa7+ {[%emt 0:00:04]} 52. Kb1 {[%emt 0:00:27]} Qe7 {[%emt 0:01:19]} 53. Qc4 {[%emt 0:01:03]} Kh5 {[%emt 0:00:55]} 54. b4 {[%emt 0:00:14]} 1/2-1/2

[Event "17th Delhi GM Open 2019-B"]
[Site "Delhi"]
[Date "2019.01.11"]
[Round "7"]
[White "Mandloi, Mukesh"]
[Black "Heikrujam Jacky Singh"]
[Result "0-1"]
[ECO "A30"]
[WhiteElo "1726"]
[BlackElo "1870"]
[Annotator "NA"]
[PlyCount "96"]
[EventDate "2019.01.09"]
[EventType "swiss"]
[EventCountry "IND"]
[SourceTitle "playchess.com"]
[Source "ChessBase"]
[SourceQuality "1"]
[TimeControl "3600+30"]

{[%evp 8,96,72,39,65,-4,23,0,29,0,4,-32,-43,-38,-29,-41,-30,-59,-41,-43,-29,-104,-33,-30,-41,-28,-26,-43,-45,-41,32767,32767,-47,-60,-41,-60,-62,-103,-42,-75,-77,-97,-130,-129,-129,-143,32767,32767,32767,-248,-261,-262,-245,-258,-235,-267,-256,-239,-300,-220,-309,-271,-299,-251,-282,-284,-271,-325,-337,-429,-421,-416,-453,-1139,-1030,-1670,-1887,-2141,-570,-872,-870,-913,-1394,-29988,-29990,-29996,-29997,-29997,-29998,-29998,-29999]} 1. d4 {[%emt 0:00:00]} Nf6 {[%emt 0:00:00]} 2. Nf3 {[%emt 0:00:00]} c5 {[%emt 0:00:00]} 3. e3 {[%emt 0:00:00]} b6 {[%emt 0:00:00]} 4. c4 {[%emt 0:00:00]} g6 {[%emt 0:00:00]} 5. Nc3 {[%emt 0:00:00]} Bg7 {[%emt 0:00:00]} 6. g3 {[%emt 0:00:00]} ({White should try} 6. d5 $14) 6... Bb7 {[%emt 0:00:00]} 7. Bg2 {[%emt 0:00:00]} O-O {[%emt 0:00:00]} 8. O-O {[%emt 0:00:00]} Ne4 {[%emt 0:00:00] LiveBook: 12 Games} 9. Qc2 {[%emt 0:00:00] A30: Symmetrical English: Double Fianchetto and Hedgehog} (9. Bd2 cxd4 10. exd4 Nxd2 11. Qxd2 Bxf3 12. Bxf3 Nc6 13. Ne2 e6 14. Rac1 Rc8 15. Rc3 Ne7 16. Rfc1 Nf5 {0-1 (42) Macieja,B (2651)-Sargissian,G (2677) Khanty-Mansiysk 2010}) 9... Nxc3 {[%emt 0:00:00]} 10. bxc3 {[%emt 0:00:00]} Nc6 {[%emt 0:00:00]} 11. Nd2 {[%emt 0:00:00]} Qc7 $146 {[%emt 0:00:00]} ({Predecessor:} 11... cxd4 12. cxd4 Rc8 13. Qa4 Rc7 14. Ba3 d6 15. Rab1 Qa8 16. Bd5 Rfc8 {½-½ (41) Iliesco,J-Guimard,C Mar del Plata 1944}) 12. Nb3 {[%emt 0:00:00]} d6 {[%emt 0:00:00]} 13. Re1 {[%emt 0:00:00]} Rac8 {[%emt 0:00:00]} 14. Bh3 {[%emt 0:00:28]} (14. d5 $15 Ne5 15. Nd2) 14... Rcd8 {[%emt 0:00:00]} 15. d5 {[%emt 0:02:18]} Ne5 {[%emt 0:00:00]} 16. Nd2 {[%emt 0:01:11]} Bc8 {[%emt 0:00:00]} 17. Bxc8 {[%emt 0:01:55]} Qxc8 {[%emt 0:00:00]} 18. f4 {[%emt 0:02:00]} Ng4 {[%emt 0:00:00]} 19. h3 {[%emt 0:00:55]} Nf6 {[%emt 0:10:44]} 20. Kg2 {[%emt 0:00:15]} Rfe8 {[%emt 0:01:46]} 21. e4 {[%emt 0:02:20]} e6 {[%emt 0:07:41]} 22. Nf3 {[%emt 0:02:06]} Nd7 {[%emt 0:05:54]} ({Black should try} 22... exd5 $17 23. cxd5 Rd7) 23. Bb2 {[%emt 0:02:32]} Qa6 {[%emt 0:00:49]} 24. Qb3 {[%emt 0:04:51] [#]} (24. dxe6 $15 Rxe6 25. Qd3) 24... exd5 $1 {[%emt 0:00:44]} 25. exd5 {[%emt 0:00:27]} Nf6 {[%emt 0:01:29]} 26. Rad1 {[%emt 0:04:35]} Ne4 {[%emt 0:01:09]} 27. Rd3 {[%emt 0:03:05]} Re7 {[%emt 0:00:55]} 28. Ne5 $2 {[%emt 0:04:55]} (28. Rde3 $11 {and White has nothing to worry.} f5 29. Ng5) 28... Nf6 {[%emt 0:03:17]} ({Less strong is} 28... dxe5 29. Rxe4 Rde8 30. Bc1 $15) 29. Nf3 {[%emt 0:02:39]} Rxe1 {[%emt 0:02:07]} 30. Nxe1 {[%emt 0:00:02]} Re8 {[%emt 0:00:24]} 31. Nf3 {[%emt 0:02:39]} Re4 {[%emt 0:04:05]} 32. Nd2 {[%emt 0:01:02]} Re2+ {[%emt 0:01:15]} 33. Kf3 {[%emt 0:01:52]} Rh2 {[%emt 0:00:00]} 34. Nf1 {[%emt 0:03:18]} Rxh3 {[%emt 0:00:37]} 35. Kg2 {[%emt 0:02:15]} Qc8 {[%emt 0:00:45]} 36. Qd1 {[%emt 0:01:12]} Rh5 {[%emt 0:01:37]} 37. Qf3 {[%emt 0:00:26]} Qa6 {[%emt 0:03:10]} 38. Ne3 {[%emt 0:03:20]} Qxa2 {[%emt 0:00:30]} 39. Rd2 {[%emt 0:00:40]} Qb1 {[%emt 0:00:40]} 40. Nd1 {[%emt 0:01:04]} (40. Nf1 $142 Ne4 41. Re2) 40... Ne4 {[%emt 0:00:43]} 41. Rd3 {[%emt 0:01:22]} Qc2+ {[%emt 0:00:08]} 42. Kg1 {[%emt 0:00:35]} Qh2+ {[%emt 0:00:01]} (42... f5 $142 43. Bc1 Rh3) 43. Kf1 {[%emt 0:00:04]} Nd2+ {[%emt 0:00:09]} 44. Rxd2 {[%emt 0:00:08]} Qxd2 {[%emt 0:00:01]} 45. Kg1 {[%emt 0:02:01]} Qe1+ {[%emt 0:00:42]} 46. Kg2 {[%emt 0:00:14]} Qh1+ {[%emt 0:00:12]} 47. Kf2 {[%emt 0:00:04]} Rh2+ {[%emt 0:00:40]} 48. Ke3 {[%emt 0:00:14]} Qe1+ {[%emt 0:00:08]} 0-1